bitfinex/quotes_ETHUSD_20241203
["timestamp","ask_amount","ask_price","bid_price","bid_amount"]
[1733269532107,9.1e-07,3625.0,3624.3,0.9902]
[1733269532108,0.9224,3624.9,3624.2,3.64202424]
[1733269532226,0.9224,3624.9,3624.2,0.64202424]
[1733269532428,0.9224,3624.9,3624.8,2.75877]
[1733269532823,9.1e-07,3625.0,3624.8,2.75877]
[1733269533052,9.1e-07,3625.0,3624.9,2.75869]
[1733269534028,9.1e-07,3625.0,3624.7,2.7588]
[1733269534367,0.9812,3624.9,3624.5,3.0]
[1733269534925,0.9812,3624.9,3624.4,2.75901]
[1733269535387,0.9812,3624.9,3624.2,0.9299]
[1733269535667,0.9812,3624.9,3624.2,0.39299]
[1733269535863,0.9812,3624.9,3624.3,2.75912]
[1733269536076,0.9812,3624.9,3624.4,3.0]
[1733269536728,0.9812,3624.9,3624.0,0.9168]
[1733269537040,0.9812,3624.9,3624.0,2.75935]
[1733269537259,0.9812,3624.9,3623.6,2.75965]
[1733269537260,0.9898,3624.6,3623.6,2.75965]
[1733269537478,0.9746,3624.4,3623.4,2.75982]
[1733269537844,0.9746,3624.3,3623.4,2.75982]
[1733269538172,3.73379,3624.3,3623.3,0.9236]
[1733269538422,0.9746,3624.1,3623.3,2.75985]
[1733269538876,0.9746,3624.1,3622.9,0.9659]
[1733269539035,0.9746,3624.1,3623.1,2.76004]
[1733269539228,1.1798723,3624.1,3622.9,0.9659]
[1733269539450,1.1798723,3624.1,3623.2,3.0]
[1733269539451,0.9746,3624.1,3623.2,3.0]
[1733269539657,0.9746,3624.1,3623.3,2.75989]
[1733269539862,1.347977,3624.1,3623.3,2.75989]
[1733269540164,1.5532493,3624.1,3623.3,2.75989]
[1733269540370,0.978,3624.0,3623.2,3.0]
[1733269541170,0.978,3624.0,3623.3,3.0]
[1733269541679,0.978,3624.0,3623.3,0.02759797]
[1733269541825,0.978,3624.0,3623.3,0.3027598]
[1733269542029,0.20546823,3624.7,3623.8,2.75951]
[1733269542246,0.9365,3624.5,3623.6,2.75967]
[1733269542586,0.9365,3624.3,3623.2,3.0]
[1733269542746,0.64692597,3624.4,3623.4,2.75982]
[1733269542747,0.20546823,3624.2,3623.4,2.75982]
[1733269542947,0.20546823,3624.2,3623.1,2.76003]
[1733269542948,1.14196823,3624.1,3623.1,2.76006]
[1733269543148,0.9365,3624.1,3623.8,2.7595]
[1733269543349,0.9116,3624.7,3623.9,2.75943]
[1733269543694,0.20547509,3624.6,3623.9,2.75943]
[1733269543894,0.20547509,3624.5,3623.9,2.75943]
[1733269544048,0.20547509,3624.4,3623.9,2.75943]
[1733269544244,1.16843391,3624.7,3623.9,2.75943]
[1733269544449,0.65660912,3624.6,3623.9,2.75943]
[1733269544691,0.20548887,3624.5,3623.9,2.75943]
[1733269544848,0.20548887,3624.4,3623.2,6.75881]
[1733269545055,1.16748887,3624.3,3623.2,3.0]
[1733269545358,0.20545335,3624.2,3623.1,2.76006]
[1733269545584,0.39265334,3624.1,3623.2,3.0]
[1733269545805,1.11676092,3624.0,3623.2,2.75996]
[1733269546090,0.2054579,3623.9,3623.2,2.75996]
[1733269546464,0.9113,3624.0,3623.2,2.75996]
[1733269546787,0.66315632,3623.9,3623.2,2.75996]
[1733269546990,0.45768945,3623.9,3623.2,2.75996]
[1733269547152,0.66315538,3623.9,3623.2,2.75996]
[1733269547504,0.66319272,3623.9,3623.2,2.75996]
[1733269549892,0.66319272,3623.9,3623.3,2.7599]
[1733269550292,0.66319272,3623.9,3623.5,2.75969]
[1733269550293,0.20550327,3623.9,3623.5,2.75969]
[1733269550494,0.9113,3624.0,3623.7,2.7596]
[1733269551069,0.9113,3624.0,3623.3,0.9198]
[1733269551274,0.9854,3624.3,3623.4,0.0275955]
[1733269551475,1.19092365,3624.3,3623.9,2.75938]
[1733269551676,0.9854,3624.3,3623.9,2.75941]
[1733269552381,0.9854,3624.3,3624.0,2.75934]
[1733269552587,0.9854,3624.3,3623.6,2.75967]
[1733269552588,0.9854,3624.3,3623.6,2.78726373]
[1733269552764,0.9854,3624.3,3623.6,3.1579701]
[1733269553105,0.9854,3624.3,3624.0,2.75934]
[1733269553522,0.9854,3624.3,3624.1,2.75928]
[1733269554983,0.9854,3624.3,3623.8,2.75947]
[1733269555190,0.9854,3624.3,3623.5,2.7597]
[1733269555423,0.9854,3624.3,3623.4,2.75982]
[1733269555623,0.374447,3624.2,3623.4,2.75982]
[1733269555918,0.943,3624.1,3623.4,2.75982]
[1733269557093,0.943,3624.1,3623.0,0.9228]
[1733269557300,2.75951,3623.9,3622.5,0.928]
[1733269557500,0.9561,3623.7,3622.8,2.76022]
[1733269558731,0.9977,3623.6,3622.8,2.76022]
[1733269559022,0.9977,3623.6,3622.3,3.0]
[1733269559208,0.9977,3623.6,3622.6,2.76041]
[1733269559409,0.9613,3623.5,3622.6,2.76041]
[1733269559583,0.9613,3623.3,3622.7,2.76036]
[1733269560201,0.9613,3623.3,3622.8,2.76023]
[1733269560382,0.9613,3623.3,3622.8,2.76024]
[1733269561064,0.9613,3623.3,3622.9,2.76019]
[1733269561206,0.9613,3623.3,3623.1,2.76]
[1733269562014,0.9613,3623.3,3622.7,0.9767]
[1733269562218,0.9225,3623.9,3623.3,2.75991]
[1733269562530,0.9225,3623.9,3623.5,2.75974]
[1733269562736,0.9225,3623.9,3623.6,2.75966]
[1733269562936,0.9225,3623.9,3623.8,2.75953]
[1733269563114,0.9225,3624.3,3623.9,2.75944]
[1733269563442,1.0660808,3624.3,3623.5,2.75973]
[1733269563644,0.9225,3624.3,3623.9,2.7594]
[1733269563855,0.9225,3624.3,3624.0,2.75937]
[1733269564227,0.9225,3624.3,3624.0,2.75934]
[1733269564651,0.9225,3624.3,3624.2,2.75922]
[1733269564945,0.9567,3624.6,3624.3,2.75907]
[1733269565160,0.9567,3624.6,3623.6,3.0]
[1733269565308,0.9567,3624.6,3623.5,2.67066239]
[1733269565509,1.21355199,3624.6,3624.2,2.75922]
[1733269565711,0.14702041,3624.5,3624.0,2.75937]
[1733269565918,0.14702041,3624.5,3624.1,2.75928]
[1733269566132,0.14702041,3624.5,3624.2,2.75916]
[1733269566333,1.21355199,3624.6,3623.9,0.9193]
[1733269566559,0.9567,3624.6,3623.9,0.9193]
[1733269566736,0.25685199,3624.6,3624.5,2.759]
[1733269567044,0.96290091,3625.0,3624.0,3.0]
[1733269567210,0.1476405,3624.9,3624.0,3.0]
[1733269567555,0.40449249,3624.9,3623.9,0.9193]
[1733269567710,0.9212,3624.8,3623.8,2.75949]
[1733269567910,0.9212,3624.8,3623.9,3.0]
[1733269568123,1.07943455,3624.8,3624.3,2.75914]
[1733269568331,1.07943455,3624.8,3623.8,2.75945]
[1733269568555,1.33608668,3624.8,3623.9,2.75944]
[1733269568776,0.69201595,3624.7,3623.9,2.75944]
[1733269569120,0.9217,3624.6,3623.9,2.75944]
[1733269569367,0.9217,3624.6,3624.0,2.75938]
[1733269569521,0.9217,3624.6,3623.5,2.7597]
[1733269569522,0.9217,3624.6,3623.6,2.75968]
[1733269569733,0.9217,3624.6,3624.4,2.75907]
[1733269570168,0.9217,3624.6,3623.9,3.75252]
[1733269570169,0.9217,3624.6,3624.2,2.7592]
[1733269570348,0.9217,3624.6,3623.5,0.9931]
[1733269570537,0.9217,3624.6,3623.7,2.75954]
[1733269570738,1.17855199,3624.6,3623.7,2.75954]
[1733269570969,1.3679432,3624.5,3623.7,2.75954]
[1733269571125,0.9339,3624.4,3623.5,2.75973]
[1733269571320,0.9339,3624.4,3623.4,2.75976]
[1733269571876,0.51372292,3624.5,3623.4,2.75976]
[1733269571877,0.9339,3624.3,3623.4,2.75976]
[1733269572172,0.42067059,3624.2,3623.5,2.75975]
[1733269572461,0.9339,3624.1,3623.0,2.7601]
[1733269572666,0.9339,3624.1,3623.3,2.75984]
[1733269572965,0.9339,3624.1,3623.3,2.75988]
[1733269573465,0.9339,3623.9,3622.6,1.0035]
[1733269573664,0.9339,3623.9,3622.9,2.7602]
[1733269573864,0.9339,3623.7,3622.9,2.76017]
[1733269574161,0.9339,3623.7,3622.6,6.7639]
[1733269574370,0.9339,3623.7,3622.9,2.76021]
[1733269574926,0.9339,3623.7,3623.0,2.76012]
[1733269575263,0.9339,3623.7,3622.8,2.76029]
[1733269575468,0.9339,3623.7,3622.9,0.64344524]
[1733269575828,0.9339,3623.7,3623.0,2.76014]
[1733269576054,0.9339,3623.7,3623.1,2.76004]
[1733269576261,0.9339,3623.7,3622.6,1.0035]
[1733269576460,0.9339,3623.7,3622.9,2.76021]
[1733269576767,0.369337,3623.6,3623.0,2.76011]
[1733269576971,0.9339,3623.7,3622.6,1.0035]
[1733269577294,0.9339,3623.7,3622.7,2.76037]
[1733269577591,0.9339,3623.7,3623.1,2.76001]
[1733269577792,0.9339,3623.7,3622.6,3.67416239]
[1733269578094,0.9339,3623.7,3623.3,2.75989]
[1733269578285,0.9339,3623.7,3622.7,0.66741624]
[1733269578496,0.9906,3624.1,3622.8,0.9714]
[1733269578682,0.9906,3624.1,3623.6,2.74149235]
[1733269579394,0.9906,3624.1,3623.3,2.75985]
[1733269579578,0.9906,3624.1,3622.8,1.67838386]
[1733269579783,0.9906,3624.1,3623.2,2.75999]
[1733269579985,0.9337,3624.0,3623.0,2.76012]
[1733269580503,0.9337,3623.9,3623.0,2.76012]
[1733269581602,0.9337,3623.9,3623.1,2.76006]
[1733269581804,1.302993,3623.9,3622.6,2.67066239]
[1733269581959,0.9337,3623.9,3623.3,2.7599]
[1733269584309,0.9337,3623.9,3623.2,0.9095]
[1733269584465,0.9337,3623.9,3623.2,3.66945]
[1733269584667,0.9337,3623.9,3623.8,2.75953]
[1733269585009,0.9184,3624.2,3624.1,2.7593]
[1733269585306,0.9184,3624.5,3624.0,2.75934]
[1733269585513,0.9184,3624.5,3623.2,0.9095]
[1733269585669,0.9184,3624.5,3623.6,2.75968]
[1733269585867,0.9184,3624.3,3623.6,2.75968]
[1733269586464,1.17556774,3624.3,3623.6,2.75968]
[1733269586668,1.17556774,3624.3,3623.7,2.75959]
[1733269587068,0.9184,3624.3,3623.7,2.75959]
[1733269587267,0.18261905,3624.2,3623.7,2.75959]
[1733269587673,0.18261905,3624.2,3623.3,2.75986]
[1733269588113,0.9184,3624.3,3623.6,2.75965]
[1733269588285,1.17556774,3624.3,3623.6,2.75965]
[1733269588716,1.17556774,3624.3,3623.3,2.75986]
[1733269589012,1.17556774,3624.3,3624.0,2.75935]
[1733269589013,0.9184,3624.3,3624.0,2.75935]
[1733269589219,0.9184,3624.3,3623.2,0.9095]
[1733269589380,0.9184,3624.3,3623.8,2.75947]
[1733269590204,0.9184,3624.3,3623.9,2.75942]
[1733269590375,1.17556774,3624.3,3623.3,0.366955]
[1733269590577,0.9184,3624.3,3623.7,2.7596]
[1733269590784,1.17556774,3624.3,3623.8,2.75952]
[1733269591092,0.9184,3624.3,3623.3,0.366955]
[1733269591294,0.9184,3624.3,3623.8,2.7595]
[1733269591607,1.17556774,3624.3,3623.8,2.7595]
[1733269591806,0.9839,3624.2,3622.5,3.0]
[1733269591996,1.24106774,3624.1,3623.2,2.75998]
[1733269592321,1.24106774,3624.0,3623.2,2.75998]
[1733269592611,0.9839,3623.8,3623.2,2.75998]
[1733269592822,0.9839,3623.8,3622.7,2.76037]
[1733269592993,0.9839,3623.8,3623.0,2.76008]
[1733269593675,0.9826,3623.7,3622.7,2.76031]
[1733269593913,0.9826,3623.6,3622.7,2.76031]
[1733269594217,0.9826,3623.6,3622.8,2.76027]
[1733269594377,0.9826,3623.6,3622.4,0.9148]
[1733269594721,0.9826,3623.5,3622.6,2.76043]
[1733269595235,0.9565,3623.3,3622.4,2.76057]
[1733269595593,2.76013,3623.1,3622.0,2.7609]
[1733269595891,0.9565,3623.0,3622.0,2.7609]
[1733269596106,0.9565,3623.0,3621.7,2.76106]
[1733269596107,0.9903,3622.9,3622.1,2.76081]
[1733269596698,0.9903,3622.9,3621.9,2.76096]
[1733269597587,1.0063,3622.8,3621.9,2.76096]
[1733269597886,0.88618682,3623.2,3621.9,2.76095]
[1733269597887,0.376652,3622.7,3621.9,2.76095]
[1733269598089,1.0063,3622.9,3621.9,2.76095]
[1733269598329,2.7603,3622.8,3621.8,2.76102]
[1733269598629,1.0063,3622.7,3621.8,2.76102]
[1733269598795,1.38296,3622.7,3621.8,2.76102]
[1733269600808,1.38296,3622.7,3621.9,2.76097]
[1733269601628,1.38296,3622.7,3621.9,2.76095]
[1733269602738,1.38296,3622.7,3621.7,2.7611]
[1733269603032,1.38296,3622.7,3621.3,3.75107]
[1733269603033,0.9205,3622.4,3621.3,0.9897]
[1733269603235,2.99924777,3622.9,3621.0,0.9132]
[1733269603423,0.9205,3622.5,3621.4,2.76132]
[1733269603798,0.9205,3622.5,3621.6,2.7612]
[1733269606052,0.9205,3622.5,3621.8,2.76102]
[1733269606231,1.288582,3622.5,3621.9,2.76097]
[1733269606419,0.9205,3622.5,3621.9,2.76097]
[1733269606839,0.9205,3622.5,3621.6,0.9763]
[1733269606992,0.9205,3622.5,3621.9,2.76097]
[1733269607192,0.9205,3622.5,3621.6,0.9763]
[1733269607495,0.913,3622.8,3621.6,0.9763]
[1733269607726,0.913,3622.8,3622.0,2.7609]
[1733269607924,0.913,3622.8,3621.6,0.9763]
[1733269608430,0.913,3622.8,3622.1,2.76076]
[1733269608605,0.913,3622.8,3621.6,0.9763]
[1733269608935,0.913,3622.8,3622.2,2.76074]
[1733269609851,0.913,3622.8,3621.7,2.76108]
[1733269610131,0.913,3622.8,3622.1,2.76079]
[1733269610516,0.913,3622.8,3621.9,2.76095]
[1733269610705,0.9413,3622.6,3621.6,2.76114]
[1733269610906,0.9413,3622.6,3621.7,2.76111]
[1733269611140,0.9413,3622.6,3621.4,2.7613]
[1733269611439,5.43091239,3622.9,3621.4,2.7613]
[1733269611623,0.9413,3622.7,3621.4,2.7613]
[1733269611993,0.9413,3622.3,3621.4,2.7613]
[1733269612599,0.9413,3622.2,3621.2,2.76151]
[1733269612932,0.9413,3622.2,3620.4,2.76212]
[1733269612933,0.9413,3622.2,3620.4,2.6982737]
[1733269613141,1.357903,3622.1,3621.2,2.76144]
[1733269613637,1.357903,3622.1,3620.5,3.673732]
[1733269613837,1.357903,3622.1,3621.3,2.76143]
[1733269614135,0.4118633,3622.0,3621.3,2.76143]
[1733269614834,0.4118633,3622.0,3621.1,2.76156]
[1733269614835,0.9922,3621.9,3621.1,2.76156]
[1733269615136,0.9922,3621.9,3621.2,2.76151]
[1733269615641,0.9922,3621.9,3620.6,0.9102]
[1733269615794,0.9922,3621.9,3621.0,2.7616]
[1733269616000,0.958,3621.7,3621.0,2.7616]
[1733269617397,0.958,3621.7,3621.1,2.76156]
[1733269617596,0.958,3621.7,3621.4,2.76134]
[1733269618131,0.9195,3622.0,3621.2,0.9977]
[1733269618335,0.9195,3622.0,3621.2,3.75916]
[1733269618545,0.9195,3622.0,3621.3,0.375916]
[1733269618700,0.987,3622.5,3621.9,2.76093]
[1733269619614,0.987,3622.5,3621.6,2.76115]
[1733269620366,0.987,3622.5,3621.2,3.75918]
[1733269620367,0.987,3622.5,3621.2,0.9977]
[1733269620513,0.987,3622.5,3622.0,2.76088]
[1733269621081,0.987,3622.5,3621.8,2.76104]
[1733269621419,1.4336476,3622.5,3621.8,2.76104]
[1733269621619,1.63907669,3622.5,3621.8,2.76104]
[1733269621930,1.4336476,3622.5,3621.8,2.76104]
[1733269622138,1.63907669,3622.5,3621.5,2.76122]
[1733269622444,0.987,3622.5,3621.9,2.76091]
[1733269622649,0.987,3622.5,3622.0,2.76088]
[1733269622837,0.987,3622.5,3621.3,2.76143]
[1733269623148,0.987,3622.5,3621.4,0.02760817]
[1733269623358,0.987,3622.5,3622.4,2.7606]
[1733269623659,0.987,3622.5,3621.6,2.67066239]
[1733269623660,0.9216,3622.6,3621.3,3.9473]
[1733269623818,0.20589703,3622.5,3621.3,0.9473]
[1733269624007,1.12749703,3622.4,3621.6,2.76119]
[1733269624209,0.2058767,3622.3,3621.6,2.76119]
[1733269624434,0.9416,3622.1,3621.3,0.9473]
[1733269624643,0.9416,3622.1,3621.2,2.76148]
[1733269624886,0.9416,3622.1,3621.3,2.76138]
[1733269625174,0.9416,3622.1,3621.1,0.66682624]
[1733269625340,0.20587152,3622.0,3621.1,3.66682624]
[1733269625536,0.9416,3622.1,3621.4,2.76133]
[1733269625726,0.20585731,3622.0,3621.4,2.76133]
[1733269625925,0.9416,3622.1,3621.4,2.76133]
[1733269626269,1.38510815,3622.0,3621.2,2.76148]
[1733269626466,1.12776002,3621.9,3621.2,2.76148]
[1733269626634,0.20586002,3621.8,3621.2,2.76148]
[1733269626835,0.9219,3621.9,3621.2,2.76148]
[1733269627035,0.20587148,3621.8,3621.2,2.76148]
[1733269627234,0.9219,3621.9,3621.2,2.76148]
[1733269627440,0.20586054,3621.8,3621.3,2.76136]
[1733269627625,0.9219,3621.9,3620.7,0.9197]
[1733269627828,0.9219,3621.9,3621.7,2.76106]
[1733269628050,0.9219,3621.9,3621.8,2.76105]
[1733269628464,0.20589388,3622.1,3621.8,2.76105]
[1733269628689,0.923,3622.2,3621.8,2.76105]
[1733269628966,0.20589186,3622.1,3621.5,0.02760869]
[1733269629128,0.923,3622.2,3621.9,2.76095]
[1733269631972,0.20598532,3622.1,3621.7,2.7611]
[1733269632181,0.923,3622.2,3621.7,2.7611]
[1733269632360,0.20603751,3622.1,3621.7,2.7611]
[1733269632664,0.923,3622.2,3621.8,2.76105]
[1733269632829,0.20608609,3622.1,3621.6,2.76117]
[1733269633029,0.923,3622.2,3621.6,2.76117]
[1733269633627,0.20606802,3622.1,3621.7,2.7611]
[1733269633854,0.923,3622.2,3621.7,2.7611]
[1733269634073,0.2060625,3622.1,3621.7,2.7611]
[1733269634275,0.923,3622.2,3621.7,2.7611]
[1733269634482,0.20606471,3622.1,3621.7,2.7611]
[1733269634774,0.9965,3622.4,3621.4,2.76129]
[1733269635072,0.9395,3622.2,3621.2,2.7615]
[1733269635268,0.9395,3622.0,3620.8,0.9716]
[1733269635478,0.20606929,3621.9,3621.3,2.76141]
[1733269635681,0.9395,3621.8,3620.8,0.9716]
[1733269635888,1.09218324,3621.8,3621.1,2.76155]
[1733269636125,0.2060762,3621.7,3620.8,0.9716]
[1733269636238,0.926,3621.8,3620.5,0.9215]
[1733269636438,0.926,3621.8,3621.0,2.76166]
[1733269636646,0.926,3621.8,3620.5,0.9215]
[1733269636647,0.20606097,3621.7,3621.1,2.76158]
[1733269636878,0.926,3621.9,3621.1,2.76158]
[1733269637170,0.926,3621.7,3620.7,2.76185]
[1733269637383,0.926,3621.7,3621.5,2.76127]
[1733269637562,0.926,3621.7,3621.2,2.76148]
[1733269637767,0.926,3621.7,3621.6,2.76121]
[1733269637982,2.67066239,3622.6,3621.4,2.76136]
[1733269637983,1.16274467,3622.0,3621.4,2.76136]
[1733269638195,0.9567,3622.0,3621.2,2.7615]
[1733269638481,0.9567,3622.0,3621.1,0.9033]
[1733269638668,0.9567,3622.0,3621.7,2.76108]
[1733269639486,0.9567,3622.0,3621.4,0.02760887]
[1733269639773,1.58280989,3622.6,3621.5,2.76128]
[1733269639978,0.79337202,3622.5,3621.6,0.02760864]
[1733269640180,0.20606213,3622.4,3621.6,0.02760864]
[1733269640384,0.20606213,3622.3,3621.6,0.02760864]
[1733269640535,0.20606213,3622.3,3621.5,2.76128]
[1733269640536,1.20156213,3622.2,3621.1,3.66488]
[1733269640739,0.9955,3622.0,3621.3,2.76142]
[1733269640939,0.20614083,3621.9,3620.6,2.76192]
[1733269641170,0.20614083,3621.8,3621.0,2.76166]
[1733269641357,0.17204083,3621.7,3621.0,2.76166]
[1733269641562,0.35546418,3621.8,3621.0,2.76166]
[1733269642148,0.35546418,3621.8,3620.8,2.76174]
[1733269642436,0.35546418,3621.8,3620.9,2.76171]
[1733269642637,2.76099,3621.9,3620.6,2.76192]
[1733269642953,2.76099,3621.9,3621.0,2.76164]
[1733269643271,2.66582,3622.2,3621.1,2.76153]
[1733269643477,0.58723771,3622.1,3621.2,2.76145]
[1733269643727,0.58723771,3622.0,3621.2,2.76145]
[1733269643878,0.58723771,3621.9,3621.2,2.76145]
[1733269644176,0.9412,3621.8,3621.3,2.76141]
[1733269644373,0.9412,3621.8,3620.5,3.64806239]
[1733269644578,0.9412,3621.8,3620.6,0.64102324]
[1733269644741,0.9412,3621.8,3621.1,2.76158]
[1733269644955,0.9412,3621.8,3620.7,2.76189]
[1733269645156,0.9412,3621.8,3621.0,2.7616]
[1733269645483,0.9412,3621.8,3621.1,2.76156]
[1733269645847,0.9412,3621.8,3621.1,2.76153]
[1733269647159,1.08868482,3621.8,3620.9,2.76172]
[1733269647899,1.08868482,3621.8,3621.0,2.76165]
[1733269650402,0.9412,3621.8,3621.1,2.76154]
[1733269650993,0.9412,3621.8,3620.6,0.64102324]
[1733269651235,0.9412,3621.8,3621.3,2.76138]
[1733269651392,0.9412,3621.8,3621.4,2.76135]
[1733269652790,0.9412,3621.8,3621.6,2.76117]
[1733269653493,0.9412,3621.8,3621.4,2.76133]
[1733269653716,0.9412,3621.8,3620.5,2.67066239]
[1733269653717,0.9412,3621.8,3620.7,0.9358]
[1733269653852,0.9412,3621.8,3621.4,2.76135]
[1733269654057,0.9412,3621.8,3621.6,2.76114]
[1733269654300,0.58757811,3622.2,3621.6,0.276114]
[1733269654479,0.20620869,3622.1,3621.0,5.52332]
[1733269654793,0.9903,3622.1,3621.1,0.9358]
[1733269655020,0.20623863,3622.0,3621.1,0.9358]
[1733269655162,0.9903,3622.1,3622.0,2.7609]
[1733269655499,1.19654741,3622.1,3621.1,0.9358]
[1733269655707,0.9903,3622.1,3621.8,2.76102]
[1733269655994,0.9903,3622.1,3621.9,2.76098]
[1733269656859,0.9903,3622.1,3621.3,2.76143]
[1733269657056,0.9903,3622.1,3621.2,0.724221]
[1733269657278,0.9903,3622.1,3621.9,2.76098]
[1733269657525,0.20630445,3622.0,3621.9,2.76098]
[1733269657708,0.20630189,3622.0,3621.9,2.76098]
[1733269658001,0.9903,3622.1,3621.9,2.76098]
[1733269658174,0.20631551,3622.0,3621.9,2.76098]
[1733269658371,0.9903,3622.1,3622.0,2.7609]
[1733269658706,1.19665488,3622.1,3622.0,2.7609]
[1733269660203,0.20635488,3622.1,3622.0,2.7609]
[1733269660400,0.9583,3622.3,3622.0,2.7609]
[1733269660700,0.20640124,3622.2,3621.8,2.76102]
[1733269660929,0.20640124,3622.1,3621.8,2.76102]
[1733269661128,0.20640124,3622.0,3621.8,2.76102]
[1733269661433,0.9583,3622.3,3621.8,2.76102]
[1733269661635,0.20642152,3622.2,3621.8,2.76102]
[1733269661796,0.20642152,3622.1,3621.8,2.76102]
[1733269661998,0.2064233,3622.0,3621.8,2.76102]
[1733269662199,0.9583,3622.3,3621.8,2.76102]
[1733269662436,0.20640426,3622.2,3621.8,2.76102]
[1733269662742,0.20640426,3622.1,3621.8,2.76102]
[1733269662898,0.20640426,3622.0,3621.8,2.76102]
[1733269663248,1.21630073,3622.3,3621.8,2.76102]
[1733269663400,0.20635536,3622.2,3621.6,2.76121]
[1733269663601,0.9583,3622.3,3622.0,2.76082]
[1733269663801,0.2063667,3622.2,3622.0,2.76082]
[1733269664039,0.9583,3622.3,3622.0,2.76082]
[1733269664213,0.20636299,3622.2,3622.0,2.76082]
[1733269664406,0.20636299,3622.1,3622.0,2.76082]
[1733269665515,0.9583,3622.3,3622.0,2.76082]
[1733269665710,0.20627277,3622.2,3622.0,2.76082]
[1733269666056,0.9583,3622.3,3622.0,2.76082]
[1733269666500,0.2062466,3622.2,3622.0,2.76082]
[1733269666703,0.9583,3622.3,3622.0,2.76082]
[1733269667024,0.2062211,3622.2,3622.1,2.76082]
[1733269668305,0.2062211,3622.2,3621.7,0.27888192]
[1733269668306,0.20620338,3622.2,3621.9,2.76097]
[1733269668547,0.20620077,3622.1,3621.7,0.27888192]
[1733269668837,0.9583,3622.3,3621.7,0.27888192]
[1733269669042,0.20620799,3622.2,3621.4,3.70855]
[1733269669249,0.20620799,3622.1,3621.4,0.9472]
[1733269669545,0.20620799,3622.0,3621.8,2.76105]
[1733269669748,0.9583,3622.3,3621.9,2.76096]
[1733269669921,0.20626479,3622.2,3621.9,2.76096]
[1733269670248,0.20626479,3622.1,3621.9,2.76096]
[1733269670544,0.9583,3622.3,3621.9,2.76096]
[1733269670751,0.9583,3622.3,3621.6,2.76117]
[1733269670752,0.2062704,3622.2,3621.6,2.76117]
[1733269671042,0.9615,3622.6,3622.1,2.76076]
[1733269671344,0.53632599,3622.5,3621.6,2.76121]
[1733269671549,0.58791336,3622.7,3622.6,2.76044]
[1733269671708,0.20628653,3622.7,3622.3,2.76067]
[1733269671905,0.20628653,3622.6,3621.9,2.76093]
[1733269672105,0.20628653,3622.5,3622.0,0.9652]
[1733269672306,0.20626432,3622.4,3622.1,2.76076]
[1733269672502,0.58786191,3622.8,3622.1,2.76076]
[1733269672741,0.9464,3622.3,3622.1,2.76076]
[1733269674062,0.9464,3622.3,3622.2,2.76075]
[1733269674269,0.9617,3622.7,3622.3,2.76064]
[1733269674428,0.20617769,3622.6,3622.3,2.76064]
[1733269674632,0.20617769,3622.6,3622.2,2.76074]
[1733269674633,0.20617769,3622.5,3622.2,2.76074]
[1733269674966,0.20617769,3622.4,3622.2,2.76074]
[1733269675263,0.32985886,3622.6,3621.6,0.9652]
[1733269675468,0.20612758,3622.5,3622.0,2.76089]
[1733269675681,0.20612758,3622.4,3622.0,2.76089]
[1733269675961,0.20612758,3622.3,3622.1,2.7608]
[1733269676161,0.25765099,3622.6,3622.1,2.7608]
[1733269676337,0.20611994,3622.5,3622.1,2.7608]
[1733269676543,0.20611994,3622.4,3622.1,2.7608]
[1733269676767,0.20611994,3622.3,3622.2,2.76075]
[1733269677463,0.9617,3622.7,3622.2,2.76075]
[1733269677638,0.20612144,3622.6,3621.7,0.372642]
[1733269677991,0.20612144,3622.5,3622.4,3.66804]
[1733269678272,0.58748442,3623.0,3622.7,2.76032]
[1733269678444,0.20615297,3622.9,3622.5,0.366804]
[1733269678765,0.58748442,3623.0,3622.8,2.76029]
[1733269678976,0.25766525,3623.0,3622.9,2.76021]
[1733269679133,0.20611841,3623.0,3622.9,2.76021]
[1733269679576,0.20611841,3623.0,3622.7,2.76034]
[1733269679733,0.20611841,3622.9,3622.7,2.76034]
[1733269679930,0.58748388,3623.2,3622.7,2.76034]
[1733269680131,0.79360811,3623.1,3622.7,2.76034]
[1733269680470,0.20612423,3623.0,3622.9,2.76021]
[1733269680670,0.20612423,3623.0,3622.9,3.036231]
[1733269680845,0.8916,3623.4,3622.9,0.276021]
[1733269681048,0.46386144,3623.3,3622.9,2.76021]
[1733269681390,0.20614732,3623.2,3623.0,2.76012]
[1733269681586,0.20614732,3623.1,3623.0,2.76012]
[1733269681959,0.20614732,3623.1,3623.0,3.036132]
[1733269682264,0.58746019,3623.5,3623.2,2.75996]
[1733269682459,0.20601631,3623.4,3623.2,2.75996]
[1733269682660,0.20601631,3623.3,3622.8,2.76029]
[1733269682896,0.20601157,3623.2,3622.7,2.76033]
[1733269683097,0.25758361,3623.4,3622.8,0.370613]
[1733269683320,0.20601003,3623.3,3623.0,2.76007]
[1733269683600,0.20601003,3623.2,3623.0,2.76007]
[1733269683764,0.25758361,3623.5,3623.0,2.76007]
[1733269683973,0.20600613,3623.4,3623.0,2.76007]
[1733269684209,0.20600613,3623.3,3623.1,2.75999]
[1733269684511,0.9767,3623.6,3623.1,2.76]
[1733269684688,0.20595135,3623.5,3623.1,2.76]
[1733269684894,0.20595135,3623.4,3623.1,2.76]
[1733269685082,0.20595135,3623.3,3623.2,2.75999]
[1733269685292,0.20595135,3623.5,3623.4,2.75983]
[1733269685614,1.41072768,3623.9,3623.2,0.9458]
[1733269685905,0.20593944,3623.8,3623.5,2.75974]
[1733269686216,0.20593944,3623.7,3623.5,2.75973]
[1733269686412,0.9458,3623.8,3622.6,0.9015]
[1733269686709,0.20584596,3623.7,3623.6,2.75968]
[1733269687710,0.20584596,3623.7,3623.4,2.75981]
[1733269687912,0.20584596,3623.6,3623.1,2.76006]